fUSD/lending_fUSD_20250916
["ID","MTS","AMOUNT","RATE_DAILY","PERIOD"]
[385724415,1757993445312,-171.0,0.00031644,14]
[385724416,1757993445321,-3094.02,0.00031662,2]
[385724417,1757993445330,-6716.31,0.00031709,2]
[385724418,1757993445339,-1597.73,0.00031731,2]
[385724419,1757993445348,-200.0,0.00031803,2]
[385724420,1757993445357,-1179.52404297,0.00031844,2]
[385724421,1757993445367,-217.09,0.00031884,120]
[385724422,1757993445377,-150.0,0.00031925,7]
[385724423,1757993445387,-150.0,0.00031925,7]
[385724424,1757993445397,-150.0,0.00031925,7]
[385724425,1757993445407,-328.81,0.00031952,2]
[385724426,1757993445416,-4000.0,0.00031957,4]
[385724427,1757993445426,-378.91096,0.0003196,2]
[385724428,1757993445436,-168.0,0.00032013,2]
[385724429,1757993445447,-176.0045071,0.00032061,2]
[385724430,1757993445456,-150.0,0.00032071,7]
[385724431,1757993445465,-472.13,0.00032082,2]
[385724432,1757993445474,-168.0,0.00032148,2]
[385724433,1757993445483,-170.81,0.00032202,2]
[385724434,1757993445492,-168.0,0.00032207,2]
[385724435,1757993445501,-152.0,0.00032223,3]
[385724437,1757993445511,-514.45397527,0.00032234,7]
[385724439,1757993445521,-168.0,0.0003233,7]
[385724440,1757993445532,-168.0,0.00032352,2]
[385724441,1757993445541,-150.0,0.00032362,7]
[385724442,1757993445550,-150.0,0.00032362,7]
[385724443,1757993445559,-150.0,0.00032362,7]
[385724444,1757993445569,-168.0,0.00032405,2]
[385724445,1757993445578,-168.0,0.00032453,2]
[385724446,1757993445587,-1179.52404297,0.00032456,2]
[385724447,1757993445596,-161.41508683,0.00032458,15]
[385724448,1757993445606,-168.0,0.00032474,7]
[385724449,1757993445616,-540.0,0.0003257,2]
[385724450,1757993445626,-160.0,0.00032577,2]
[385724451,1757993445636,-150.0,0.00032654,7]
[385724452,1757993445645,-150.0,0.00032654,7]
[385724453,1757993445656,-150.0,0.00032654,7]
[385724454,1757993445665,-4707.0,0.0003268,2]
[385724455,1757993445675,-175.15,0.00032706,2]
[385724456,1757993445684,-217.26,0.00032767,2]
[385724457,1757993445694,-150.0,0.00032767,2]
[385724458,1757993445703,-150.0,0.00032767,2]
[385724459,1757993445712,-411.1,0.00032767,2]
[385724460,1757993445722,-167.07,0.00032767,2]
[385724461,1757993445732,-151.02,0.00032767,2]
[385724462,1757993445742,-150.0,0.00032767,2]
[385724463,1757993445751,-1192.33,0.00032767,2]
[385724464,1757993445759,-150.0,0.00032767,2]
[385724465,1757993445766,-150.0,0.00032767,2]
[385724466,1757993445774,-411.1,0.00032767,2]
[385724467,1757993445782,-150.0,0.00032767,2]
[385724468,1757993445790,-174.89,0.00032767,2]
[385724469,1757993445799,-543.08,0.00032767,2]
[385724470,1757993445807,-150.0,0.00032767,2]
[385724471,1757993445818,-167.12,0.00032767,2]
[385724472,1757993445827,-174.89,0.00032767,2]
[385724473,1757993445836,-1192.33,0.00032767,2]
[385724474,1757993445846,-150.0,0.00032767,2]
[385724475,1757993445855,-150.0,0.00032767,2]
[385724476,1757993445865,-150.0,0.00032767,2]
[385724477,1757993445874,-150.0,0.00032767,2]
[385724478,1757993445884,-543.08,0.00032767,2]
[385724479,1757993445894,-167.12,0.00032767,2]
[385724480,1757993445903,-411.1,0.00032767,2]
[385724481,1757993445912,-150.0,0.000328,7]
[385724482,1757993445922,-150.0,0.000328,7]
[385724483,1757993445931,-150.0,0.000328,7]
[385724484,1757993445940,-717.41239131,0.00032846,7]
[385724485,1757993445949,-3200.0,0.000329,12]
[385724486,1757993445958,-378.91096,0.0003296,2]
[385724487,1757993445967,-157.01,0.00032972,2]
[385724488,1757993445976,-875.0,0.0003298,7]
[385724489,1757993445985,-472.13,0.00033041,2]
[385724490,1757993445995,-804.41,0.00033041,2]
[385724491,1757993446004,-804.41,0.00033041,2]
[385724492,1757993446013,-804.41,0.00033041,2]
[385724493,1757993446023,-472.13,0.00033041,2]
[385724495,1757993446032,-472.13,0.00033041,2]
[385724497,1757993446042,-804.41,0.00033041,2]
[385724499,1757993446051,-804.41,0.00033041,2]
[385724500,1757993446061,-472.13,0.00033041,2]
[385724501,1757993446072,-472.13,0.00033041,2]
[385724502,1757993446081,-362.91,0.00033041,2]
[385724503,1757993446091,-472.13,0.00033041,2]
[385724504,1757993446099,-472.13,0.00033041,2]
[385724505,1757993446109,-472.13,0.00033041,2]
[385724506,1757993446118,-472.13,0.00033041,2]
[385724507,1757993446127,-472.13,0.00033041,2]
[385724508,1757993446137,-184.15,0.00033041,2]
[385724509,1757993446145,-1179.52404297,0.00033067,2]
[385724510,1757993446156,-151.0,0.00033081,7]
[385724511,1757993446166,-151.0,0.00033081,7]
[385724512,1757993446176,-151.0,0.00033081,7]
[385724513,1757993446186,-151.0,0.00033081,7]
[385724514,1757993446196,-151.0,0.00033081,7]
[385724515,1757993446206,-151.0,0.00033081,7]
[385724516,1757993446216,-160.00982,0.00033081,7]
[385724517,1757993446225,-151.0,0.00033081,7]
[385724518,1757993446235,-151.0,0.00033081,7]
[385724519,1757993446245,-151.0,0.00033081,7]
[385724520,1757993446254,-221.213753,0.00033081,7]
[385724521,1757993446263,-1581.0,0.00033082,2]
[385724522,1757993446272,-1303.0,0.00033082,2]
[385724523,1757993446281,-568.0,0.00033082,2]
[385724524,1757993446291,-602.0,0.00033082,2]
[385724525,1757993446300,-813.0,0.00033082,2]
[385724526,1757993446309,-1178.0,0.00033082,2]
[385724527,1757993446321,-898.0,0.00033082,2]
[385724528,1757993446330,-4171.0,0.00033082,2]
[385724529,1757993446340,-6177.0,0.00033082,2]
[385724530,1757993446349,-755.0,0.00033082,2]
[385724531,1757993446358,-2039.0,0.00033082,2]
[385724532,1757993446367,-1260.0,0.00033082,2]
[385724533,1757993446376,-500.0,0.00033088,7]
[385724534,1757993446385,-168.0,0.00033176,2]
[385724535,1757993446396,-172.0,0.00033226,30]
[385724536,1757993446418,-168.0,0.00033235,2]
[385724537,1757993446430,-150.0,0.00033237,7]
[385724538,1757993446461,-150.0,0.00033237,7]
[385724539,1757993446501,-150.0,0.00033237,7]
[385724540,1757993446510,-150.0,0.00033237,7]
[385724541,1757993446520,-150.0,0.00033237,7]
[385724542,1757993446529,-875.0,0.00033288,2]
[385724543,1757993446538,-152.35274635,0.00033301,2]
[385724544,1757993446547,-500.0,0.00033301,2]
[385724545,1757993446556,-150.0,0.00033301,2]
[385724546,1757993446566,-150.0,0.00033301,2]
[385724547,1757993446576,-150.0,0.00033301,2]
[385724548,1757993446585,-150.0,0.00033301,2]
[385724549,1757993446594,-204.3001426,0.00033301,2]
[385724550,1757993446602,-150.0,0.00033301,2]
[385724551,1757993446611,-500.0,0.00033301,2]
[385724552,1757993446620,-150.0,0.00033301,2]
[385724553,1757993446630,-184.15581335,0.00033301,2]
[385724554,1757993446639,-150.0,0.00033301,2]
[385724555,1757993446649,-500.0,0.00033351,7]
[385724556,1757993446659,-168.0,0.00033364,2]
[385724557,1757993446668,-168.0,0.0003339,2]
[385724558,1757993446678,-168.0,0.00033455,7]
[385724559,1757993446687,-875.0,0.00033557,2]
[385724560,1757993446696,-500.0,0.00033575,2]
[385724561,1757993446707,-150.0,0.00033575,2]
[385724562,1757993446718,-150.0,0.00033575,2]
[385724563,1757993446728,-150.0,0.00033575,2]
[385724564,1757993446737,-150.0,0.00033575,2]
[385724565,1757993446747,-500.0,0.00033575,2]
[385724566,1757993446757,-150.0,0.00033575,2]
[385724567,1757993446767,-150.0,0.00033589,2]
[385724568,1757993446776,-167.12,0.00033589,2]
[385724569,1757993446786,-411.1,0.00033589,2]
[385724570,1757993446796,-174.89,0.00033589,2]
[385724571,1757993446805,-543.08,0.00033589,2]
[385724572,1757993446815,-1192.33,0.00033589,2]
[385724573,1757993446824,-150.0,0.00033589,2]
[385724574,1757993446833,-150.0,0.00033589,2]
[385724575,1757993446843,-1192.33,0.00033589,2]
[385724576,1757993446851,-150.0,0.00033589,2]
[385724577,1757993446861,-174.89,0.00033589,2]
[385724578,1757993446870,-167.12,0.00033589,2]
[385724579,1757993446878,-150.0,0.00033589,2]
[385724580,1757993446887,-543.08,0.00033589,2]
[385724581,1757993446896,-150.0,0.00033589,2]
[385724582,1757993446905,-1192.33,0.00033589,2]
[385724583,1757993446914,-150.0,0.00033589,2]
[385724584,1757993446923,-411.1,0.00033589,2]
[385724585,1757993446934,-166.82,0.00033589,2]
[385724586,1757993446943,-411.1,0.00033589,2]
[385724587,1757993446952,-541.27,0.00033589,2]
[385724588,1757993446961,-174.89,0.00033589,2]
[385724589,1757993446971,-174.89,0.00033589,2]
[385724590,1757993446981,-411.1,0.00033589,2]
[385724591,1757993446991,-174.13,0.00033589,2]
[385724592,1757993447003,-409.17,0.00033589,2]
[385724593,1757993447012,-251.614,0.00033644,2]
[385724594,1757993447021,-150.218,0.00033644,2]
[385724595,1757993447031,-151.0,0.00033644,2]
[385724596,1757993447040,-150.0,0.00033674,7]
[385724597,1757993447050,-150.0,0.00033674,7]
[385724598,1757993447059,-150.0,0.00033674,7]
[385724599,1757993447069,-1179.52404297,0.00033678,2]
[385724600,1757993447079,-1000.0,0.00033698,7]
[385724601,1757993447088,-529.0,0.0003375,2]
[385724602,1757993447099,-150.0,0.0003382,7]
[385724603,1757993447109,-150.0,0.0003382,7]
[385724604,1757993447119,-150.0,0.0003382,7]
[385724605,1757993447129,-528.0,0.00033849,2]
[385724606,1757993447138,-200.0,0.00033849,2]
[385724607,1757993447147,-200.0,0.00033849,2]
[385724608,1757993447158,-200.0,0.00033849,2]
[385724609,1757993447168,-200.0,0.00033849,2]
[385724610,1757993447177,-195.59604136,0.00033849,2]
[385724611,1757993447186,-150.0,0.00033849,2]
[385724612,1757993447196,-168.0,0.00033869,2]
[385724613,1757993447206,-500.0,0.00033885,7]
[385724614,1757993447215,-168.0,0.0003395,2]
[385724615,1757993447226,-378.91096,0.0003396,2]
[385724616,1757993447236,-472.13,0.00034,2]
[385724617,1757993447246,-168.0,0.00034062,2]
[385724618,1757993447257,-150.0,0.00034112,7]
[385724619,1757993447269,-150.0,0.00034112,7]
[385724620,1757993447279,-150.0,0.00034112,7]
[385724621,1757993447289,-280.52947233,0.00034123,2]
[385724622,1757993447299,-309.82,0.00034136,60]
[385724623,1757993447310,-832.36,0.00034192,2]
[385724624,1757993447320,-382.86,0.00034192,2]
[385724625,1757993447330,-309.82,0.00034236,60]
[385724626,1757993447339,-168.0,0.00034244,2]
[385724627,1757993447349,-800.0,0.00034246,60]
[385724628,1757993447358,-1179.52404297,0.00034289,2]
[385724629,1757993447367,-168.0,0.00034311,7]
[385724630,1757993447377,-309.82,0.00034336,60]
[385724631,1757993447386,-1000.0,0.00034383,7]
[385724632,1757993447395,-150.0,0.00034403,7]
[385724633,1757993447405,-150.0,0.00034411,2]
[385724634,1757993447414,-495.47,0.00034411,2]
[385724635,1757993447423,-167.12,0.00034411,2]
[385724636,1757993447435,-543.08,0.00034411,2]
[385724637,1757993447445,-411.1,0.00034411,2]
[385724638,1757993447456,-150.0,0.00034411,2]
[385724639,1757993447468,-174.89,0.00034411,2]
[385724640,1757993447479,-309.82,0.00034436,60]
[385724641,1757993447488,-500.0,0.00034483,7]
[385724642,1757993447500,-500.0,0.00034483,7]
[385724643,1757993447511,-500.0,0.00034483,7]
[385724644,1757993447741,-281.93440825,0.000345,3]
[385724645,1757993447750,-800.0,0.0003452,60]
[385724646,1757993447761,-309.82,0.00034536,60]
[385724647,1757993447770,-1929.18480308,0.00034547,2]
[385724648,1757993447780,-150.0,0.00034549,7]
[385724649,1757993447791,-150.0,0.00034549,7]
[385724650,1757993447801,-150.0,0.00034549,7]
[385724651,1757993447810,-168.0,0.00034581,7]
[385724652,1757993447821,-309.82,0.00034636,60]
[385724653,1757993447831,-4000.0,0.00034638,4]
[385724654,1757993447840,-33245.5037,0.00034687,2]
[385724655,1757993447849,-1000.0,0.00034687,2]
[385724656,1757993447859,-4200.0,0.000347,12]
[385724657,1757993447869,-1000.0,0.000347,7]
[385724658,1757993447878,-4415.36797528,0.000347,7]
[385724659,1757993447888,-168.0,0.0003471,2]
[385724660,1757993447898,-309.82,0.00034736,60]
[385724661,1757993447908,-155.07,0.0003476,2]
[385724662,1757993447917,-151.0,0.0003477,7]
[385724663,1757993447926,-151.0,0.0003477,7]
[385724664,1757993447936,-151.0,0.0003477,7]
[385724665,1757993447945,-256.585643,0.0003477,7]
[385724666,1757993447954,-191532.1682,0.0003477,2]
[385724667,1757993447964,-800.0,0.00034794,60]
[385724668,1757993447973,-5300.0,0.000348,12]
[385724669,1757993447983,-1000.0,0.000348,7]
[385724670,1757993447992,-309.82,0.00034836,60]
[385724671,1757993448003,-152.0,0.00034852,4]
[385724672,1757993448012,-559.0,0.00034879,7]
[385724673,1757993448021,-559.0,0.00034879,7]
[385724674,1757993448031,-559.0,0.00034879,7]
[385724675,1757993448040,-559.0,0.00034879,7]
[385724676,1757993448049,-559.0,0.00034879,7]
[385724677,1757993448059,-559.0,0.00034879,7]
[385724678,1757993448069,-559.0,0.00034879,7]
[385724679,1757993448080,-559.0,0.00034879,7]
[385724680,1757993448089,-559.0,0.00034879,7]
[385724681,1757993448099,-559.0,0.00034879,7]
[385724682,1757993448108,-559.0,0.00034879,7]
[385724683,1757993448118,-559.0,0.00034879,7]
[385724684,1757993448128,-559.0,0.00034879,7]
[385724685,1757993448137,-559.0,0.00034879,7]
[385724686,1757993448147,-559.0,0.00034879,7]
[385724687,1757993448159,-559.0,0.00034879,7]
[385724688,1757993448168,-559.0,0.00034879,7]
[385724689,1757993448178,-559.0,0.00034879,7]
[385724690,1757993448188,-559.0,0.00034879,7]
[385724691,1757993448198,-559.0,0.00034879,7]
[385724692,1757993448207,-559.0,0.00034879,7]
[385724693,1757993448216,-559.0,0.00034879,7]
[385724694,1757993448225,-559.0,0.00034879,7]
[385724695,1757993448235,-559.05976718,0.00034879,7]
[385724696,1757993448245,-151.0,0.0003488,7]
[385724697,1757993448255,-717.36467328,0.000349,2]
[385724698,1757993448264,-5000.0,0.000349,2]
[385724699,1757993448274,-203.24345766,0.000349,2]
[385724700,1757993448283,-1000.0,0.000349,12]
[385724701,1757993448292,-632.91615319,0.000349,2]
[385724702,1757993448302,-1000.0,0.000349,7]
[385724703,1757993448311,-1179.52404297,0.000349,2]
[385724704,1757993448321,-168.0,0.00034911,2]
[385724705,1757993448331,-157.01,0.00034911,2]
[385724706,1757993448340,-518.0,0.0003493,2]
[385724707,1757993448350,-309.82,0.00034936,60]
[385724708,1757993448359,-378.91096,0.0003496,2]
[385724709,1757993448369,-500.0,0.00034973,5]
[385724710,1757993448378,-500.0,0.00034973,5]
[385724711,1757993448387,-150.0,0.00034986,7]
[385724712,1757993448396,-150.0,0.00034986,7]
[385724713,1757993448406,-150.0,0.00034986,7]
[385724714,1757993448415,-150.0,0.00034986,7]
[385724715,1757993448425,-150.0,0.00034986,7]
[385724716,1757993448435,-150.0,0.00034986,7]
[385724717,1757993448444,-150.0,0.00034986,7]
[385724718,1757993448454,-150.0,0.00034986,7]
[385724719,1757993448464,-150.0,0.00034986,7]
[385724720,1757993448474,-43710.60592143,0.00034988,7]
[385724721,1757993448484,-151.004966,0.0003499,7]
[385724722,1757993448493,-356.60627772,0.0003499,2]
[385724723,1757993448503,-356.60627772,0.0003499,2]
[385724724,1757993448512,-192.4625,0.00034999,2]
[385724725,1757993448521,-150.0,0.00034999,2]
[385724726,1757993448531,-1066.57,0.00034999,120]
[385724727,1757993448540,-161647.4936131,0.00035,4]
[385724728,1757993448557,-61000.0001,0.00035,4]
[385724729,1757993448569,-86055.1592361,0.00035,4]
[385724730,1757993448580,-93124.111997,0.00035,4]
[385724731,1757993448682,-1059.57,0.00035,4]
[385724732,1757993448694,-952.44768664,0.00035,4]
[385724733,1757993449446,-308.75427073,0.00035,4]
[385724734,1757993449509,-546.88504103,0.00035,4]
[385724737,1757993708023,2219.712107,7.945e-05,2]
[385724738,1757993860721,400.0,0.000301,120]
[385724750,1757994588853,729.35,0.00030136,120]
[385724753,1757994625429,-500.0,0.00023631,2]
[385724754,1757994625450,-387.67733422,0.00023631,2]
[385724755,1757994625472,-2004.403681,0.00023637,2]
[385724757,1757994632093,-779.20937621,0.00024899,2]
[385724758,1757994632251,-400.0,0.00024899,2]
[385724759,1757994632263,-20.79062379,0.00024899,2]
[385724760,1757994632272,-10362.45255891,0.000249,2]
[385724761,1757994632282,-483.84500012,0.00026989,2]
[385724762,1757994632291,-480.0,0.00027099,2]
[385724763,1757994632301,-484.67690284,0.000295,2]
[385724764,1757994632311,-484.67690284,0.000298,2]
[385724765,1757994632320,-161.92,0.0003,14]
[385724766,1757994632330,-484.67690284,0.000301,2]
[385724767,1757994632339,-900.0,0.000301,50]
[385724768,1757994632349,-484.67690284,0.000304,2]
[385724769,1757994632358,-484.67690284,0.000307,2]
[385724770,1757994632367,-500.0,0.00030804,7]
[385724771,1757994632377,-3019.39713018,0.00031213,2]
[385724772,1757994632386,-150.0,0.00031488,7]
[385724773,1757994632395,-150.0,0.00031488,7]
[385724774,1757994632404,-150.0,0.00031488,7]
[385724775,1757994632414,-150.0,0.00031488,7]
[385724776,1757994632423,-151.3,0.00031557,2]
[385724777,1757994632432,-500.0,0.0003178,7]
[385724778,1757994632442,-290.83,0.00031975,2]
[385724779,1757994632452,-2702.81,0.00031985,2]
[385724780,1757994632461,-437.55856353,0.00032063,2]
[385724781,1757994632473,-817.64143647,0.00032063,2]
[385724782,1757994632483,-169.46,0.00032102,30]
[385724783,1757994632492,-106.56986161,0.0003222,2]
[385724784,1757994638176,-305.43013839,0.0003222,2]
[385724785,1757994638188,-202.78,0.0003222,2]
[385724786,1757994638197,-910.77436821,0.0003234,7]
[385724787,1757994638206,-1927.34,0.00032345,2]
[385724788,1757994638215,-983.36,0.00032362,2]
[385724789,1757994638224,-250.0,0.00032398,2]
[385724790,1757994638233,-228.82,0.00032407,2]
[385724791,1757994638242,-666.0,0.00032417,3]
[385724792,1757994638251,-401.412,0.00032454,32]
[385724793,1757994638260,-457.0,0.000327,2]
[385724794,1757994638270,-152.0,0.00032881,3]
[385724795,1757994638279,-1260.0,0.00032912,2]
[385724796,1757994638288,-3390.0,0.00032912,2]
[385724797,1757994638298,-2039.0,0.00032912,2]
[385724798,1757994638306,-755.0,0.00032912,2]
[385724799,1757994638316,-568.0,0.00032912,2]
[385724800,1757994638325,-602.0,0.00032912,2]
[385724802,1757994638334,-1581.0,0.00032912,2]
[385724804,1757994638343,-1303.0,0.00032912,2]
[385724806,1757994638352,-813.0,0.00032912,2]
[385724808,1757994638362,-2604.68543287,0.00032912,2]
[385726007,1757995495259,298.75,0.00016475,2]
[385726025,1757995832204,-260.56506852,0.00024899,2]
[385726026,1757995832216,-136.43493148,0.00024899,2]
[385726027,1757995832225,-739.5245916,0.000249,2]
[385726028,1757995832258,-9317.21851469,0.000249,2]
[385726029,1757995832268,-545.0,0.00027137,2]
[385726030,1757995832277,-166.89,0.00028875,30]
[385726031,1757995832287,-1330.2372593,0.00029948,2]
[385726032,1757995832296,-5304.1902799,0.00029948,2]
[385726033,1757995832306,-352.0090142,0.00029948,2]
[385726034,1757995832315,-166.89,0.00030137,30]
[385726035,1757995832325,-321.129,0.00030245,25]
[385726036,1757995832334,-500.0,0.00030297,7]
[385726037,1757995832343,-500.0,0.00030364,7]
[385726038,1757995832353,-500.0,0.00030587,7]
[385726039,1757995832362,-160.0,0.00030802,2]
[385726040,1757995832371,-160.0,0.00030802,2]
[385726041,1757995832380,-500.0,0.00030992,7]
[385726042,1757995832389,-161.0,0.00031,120]
[385726043,1757995832398,-4225.0,0.0003106,2]
[385726044,1757995832407,-898.0,0.0003106,2]
[385726045,1757995832418,-1178.0,0.0003106,2]
[385726046,1757995832428,-4171.0,0.0003106,2]
[385726047,1757995832438,-6177.0,0.0003106,2]
[385726048,1757995832452,-862.824,0.0003106,2]
[385726049,1757995832461,-500.0,0.00031187,7]
[385726050,1757995832470,-500.0,0.00031316,7]
[385726051,1757995832479,-166.89,0.00031359,30]
[385726052,1757995832490,-150.0,0.00031488,7]
[385726053,1757995832500,-150.0,0.00031488,7]
[385726054,1757995832510,-160.48138757,0.00031488,7]
[385726055,1757995832519,-150.0,0.00031488,7]
[385726056,1757995832528,-150.0,0.00031488,7]
[385726057,1757995832538,-150.0,0.00031488,7]
[385726058,1757995832547,-150.0,0.00031488,7]
[385726059,1757995832556,-150.0,0.00031488,7]
[385726060,1757995832568,-279.99849697,0.00031488,7]
[385726062,1757995832578,-151.3799013,0.00031488,7]
[385726064,1757995832588,-150.0,0.00031488,7]
[385726065,1757995832599,-150.0,0.00031488,7]
[385726066,1757995832608,-150.0,0.00031488,7]
[385726067,1757995832617,-150.0,0.00031488,7]
[385726068,1757995832626,-544.19512165,0.00031499,7]
[385726070,1757995832636,-164.23561952,0.0003153,2]
[385726072,1757995832645,-29393.44215048,0.00031631,30]
[385726075,1757995832657,-606.55784952,0.00031631,30]
[385726077,1757995832666,-281.11798863,0.00031652,2]
[385726079,1757995832676,-500.0,0.00031757,7]
[385726081,1757995832684,-418.95,0.00031804,2]
[385726084,1757995832694,-171.23,0.00031868,2]
[385726086,1757995832703,-1000.0,0.00032017,7]
[385726088,1757995832712,-200.0,0.00032218,2]
[385726091,1757995832722,-266.24504555,0.00032242,7]
[385726093,1757995832733,-233.75495445,0.00032242,7]
[385726095,1757995832742,-101.4469992,0.00032362,7]
[385726097,1757995832784,-48.5530008,0.00032362,7]
[385726098,1757995832793,-517.49888921,0.00032544,7]
[385726099,1757995832803,-2437.64,0.00032548,2]
[385726100,1757995832813,-439.0,0.000326,2]
[385726101,1757995832825,-166.89,0.00032601,30]
[385726102,1757995832835,-500.0,0.00032638,7]
[385726103,1757995832844,-500.0,0.00032659,7]
[385726104,1757995832853,-2600.1595036,0.0003268,2]
[385726110,1757995838267,-317.1,0.0003106,2]
[385726138,1757995840314,-302.17412442,0.0003106,2]
[385726140,1757995840329,-502.29884863,0.0003106,2]
[385726141,1757995840341,-15947.16144008,0.0003106,2]
[385726167,1757995846337,-230.96135417,0.00027037,2]
[385726168,1757995846347,-47.00499278,0.0003106,2]
[385726169,1757995846359,-404.23052425,0.0003106,2]
[385726170,1757995846482,-751.04783701,0.0003106,2]
[385726202,1757996188433,-520.23,0.000249,2]
[385726203,1757996188456,-1868.93898478,0.000249,2]
[385726207,1757996391799,167.34,0.00015491,2]
[385726217,1757996726219,9584.18508571,0.000175,2]
[385726218,1757996737332,5651.7658508,9e-05,2]
[385726220,1757996760674,-195.18,0.000199,2]
[385726221,1757996775569,-153.92,0.000199,2]
[385726222,1757996782508,-154.29758042,0.000199,2]
[385726227,1757996825468,700.0,0.000197,7]
[385726228,1757996827562,1500.0,0.000198,7]
[385726229,1757996829657,2300.0,0.000199,7]
[385726230,1757996840784,4763.43284853,0.0001305,2]
[385726236,1757996873783,180.97987543,0.00019999,5]
[385726237,1757996896289,369.19571865,0.000135,2]
[385726238,1757996896449,302.7294814,0.000125,2]
[385726239,1757996918948,264.30201381,0.000107,2]
[385726241,1757996927646,160.61299133,0.00012,2]
[385726248,1757997031452,-877.67466322,0.00019899,2]
[385726249,1757997031526,-322.32533678,0.00019899,2]
[385726250,1757997031536,-300.0,0.00019899,2]
[385726251,1757997031545,-300.0,0.00019899,2]
[385726252,1757997031555,-160.06420726,0.000199,2]
[385726253,1757997031564,-2375.68584466,0.000199,2]
[385726254,1757997031573,-618.0691107,0.000199,2]
[385726255,1757997031583,-5067.12150805,0.000199,2]
[385726256,1757997031592,-300.0,0.00019936,2]
[385726257,1757997031602,-300.0,0.00019936,2]
[385726258,1757997031611,-195.0,0.00019936,2]
[385726259,1757997031620,-250.0,0.00019936,2]
[385726260,1757997031629,-300.0,0.00019969,2]
[385726261,1757997031639,-300.0,0.00019969,2]
[385726262,1757997031648,-300.0,0.00019969,2]
[385726263,1757997031658,-308.11080465,0.00019969,2]
[385726264,1757997031668,-195.0,0.00019969,2]
[385726265,1757997031681,-850.0,0.00019972,2]
[385726266,1757997031691,-509.37768218,0.00019973,2]
[385726267,1757997031700,-601.2428764,0.00019973,2]
[385726268,1757997031710,-500.0,0.00019973,2]
[385726269,1757997031721,-500.0,0.00019973,2]
[385726270,1757997031731,-500.0,0.00019973,2]
[385726271,1757997031740,-500.0,0.00019973,2]
[385726272,1757997031751,-500.0,0.00019973,2]
[385726273,1757997031760,-500.0,0.00019973,2]
[385726274,1757997031770,-500.0,0.00019973,2]
[385726275,1757997031779,-500.0,0.00019973,2]
[385726276,1757997031788,-500.0,0.00019973,2]
[385726277,1757997031797,-500.0,0.00019973,2]
[385726278,1757997031807,-504.96411464,0.00019973,2]
[385726279,1757997031816,-506.43743758,0.00019973,2]
[385726280,1757997031826,-500.0,0.00019973,2]
[385726281,1757997031835,-500.0,0.00019973,2]
[385726282,1757997031844,-250.0,0.00019974,2]
[385726283,1757997031854,-153.38,0.0001999,2]
[385726284,1757997031863,-153.38,0.0001999,2]
[385726285,1757997031873,-153.38,0.0001999,2]
[385726287,1757997031882,-153.38,0.0001999,2]
[385726289,1757997031893,-153.38,0.0001999,2]
[385726291,1757997031903,-153.38,0.0001999,2]
[385726293,1757997031911,-153.38,0.0001999,2]
[385726295,1757997031920,-151.0,0.00019997,2]